bitfinex/quotes_ETHUSD_20240718
["timestamp","ask_amount","ask_price","bid_price","bid_amount"]
[1721327760066,2.93937,3402.1,3401.4,2.97430791]
[1721327760282,2.93945,3402.0,3401.5,0.55]
[1721327760476,2.93954,3401.9,3401.6,0.03428335]
[1721327761259,2.93954,3401.9,3401.3,3.49004]
[1721327761473,2.93954,3401.9,3401.4,0.03442384]
[1721327762665,2.93937,3402.1,3401.4,2.97437384]
[1721327762867,2.93937,3402.1,3401.5,0.55]
[1721327763064,2.93946,3402.0,3401.6,0.03427676]
[1721327763385,2.93955,3401.9,3401.6,0.03427676]
[1721327764083,2.93955,3401.9,3401.7,0.03420981]
[1721327764252,2.93955,3401.9,3401.4,0.55]
[1721327764585,2.93955,3401.9,3401.5,0.03435161]
[1721327765691,3.527444,3401.9,3401.5,0.03435161]
[1721327765987,2.93975,3401.7,3401.5,0.03435161]
[1721327767049,5.87958,3401.6,3401.5,0.03435161]
[1721327767488,5.3308,3401.8,3400.7,2.3701]
[1721327767489,2.94005,3401.4,3400.7,5.31062]
[1721327768395,2.9401,3401.3,3400.7,5.31062]
[1721327768596,2.9401,3401.3,3400.8,0.55]
[1721327770489,0.53308,3401.7,3400.3,5.32008]
[1721327770490,2.94035,3401.0,3400.3,5.32008]
[1721327770660,0.588057,3400.9,3400.3,5.32008]
[1721327770853,2.94042,3400.9,3400.4,0.55]
[1721327771392,2.94073,3400.6,3400.0,7.94115]
[1721327771700,2.94073,3400.6,3400.0,5.0]
[1721327771854,2.94073,3400.6,3400.0,7.94114]
[1721327772051,2.94073,3400.6,3400.1,0.03306526]
[1721327772466,0.588124,3400.6,3400.1,0.03306526]
[1721327772799,5.882,3400.2,3400.1,0.03306526]
[1721327773060,5.029,3401.0,3400.1,0.03306526]
[1721327773061,2.94085,3400.4,3400.1,0.03306526]
[1721327773456,5.37623,3400.9,3400.1,0.03306526]
[1721327773656,5.882,3400.2,3400.1,0.03306526]
[1721327773903,11.2588,3400.2,3400.1,0.03306526]
[1721327774098,14.2588,3400.2,3400.1,0.03306526]
[1721327775402,11.3178,3400.2,3400.1,0.03306526]
[1721327776403,14.2588,3400.2,3400.1,0.03306526]
[1721327776575,15.978767,3400.2,3400.1,0.03306526]
[1721327778219,18.919767,3400.2,3400.1,0.03306526]
[1721327778421,21.25573189,3400.2,3400.1,5.26e-06]
[1721327778567,11.76432,3400.1,3400.0,5.0]
[1721327778774,14.76432,3400.1,3400.0,5.0]
[1721327778975,17.48401219,3400.1,3400.0,5.0]
[1721327779186,14.54293219,3400.1,3400.0,5.0]
[1721327779608,17.48401219,3400.1,3400.0,5.0]
[1721327779909,14.54293219,3400.1,3400.0,5.0]
[1721327785628,5.66077219,3400.1,3400.0,5.0]
[1721327785834,5.88216,3400.1,3400.0,5.0]
[1721327786135,5.88216,3400.1,3400.0,5.03216306]
[1721327786438,2.94089,3400.4,3400.0,5.03216306]
[1721327787228,2.94091,3400.3,3400.0,5.03216306]
[1721327788493,2.4203,3401.1,3400.0,5.03216306]
[1721327788494,2.4087,3401.5,3400.0,5.84426034]
[1721327788691,2.94059,3400.7,3400.1,0.55]
[1721327788932,2.94059,3400.7,3400.2,0.03196739]
[1721327789731,2.94026,3401.1,3400.2,3.23498586]
[1721327790061,2.94026,3401.1,3400.4,2.94076]
[1721327790224,2.94014,3401.2,3400.6,2.94063]
[1721327790425,2.9403,3401.1,3400.5,0.03171682]
[1721327790644,2.94027,3401.1,3400.7,0.0315648]
[1721327790827,2.94008,3401.3,3400.6,0.58164081]
[1721327791027,2.93996,3401.4,3400.8,0.0314888]
[1721327791235,2.93985,3401.6,3400.8,2.94046]
[1721327791558,2.94014,3401.2,3400.9,0.58123309]
[1721327791713,2.94014,3401.2,3400.9,0.03123309]
[1721327792114,2.93996,3401.4,3400.7,0.55]
[1721327792316,2.94007,3401.3,3400.8,0.0312551]
[1721327792546,2.94007,3401.3,3400.7,0.55]
[1721327792753,2.94007,3401.3,3400.8,0.03359738]
[1721327793112,2.94019,3401.2,3400.7,0.55]
[1721327793317,2.94019,3401.2,3400.8,0.03359738]
[1721327793850,2.94019,3401.2,3400.6,0.55]
[1721327794349,2.94019,3401.2,3400.7,0.03364604]
[1721327794548,2.94019,3401.2,3400.6,0.55]
[1721327794748,2.93997,3401.4,3400.7,0.03364604]
[1721327794953,2.93982,3401.6,3400.7,0.03364604]
[1721327795117,2.93972,3401.7,3401.1,2.3091]
[1721327795314,2.93988,3401.5,3401.2,0.58600165]
[1721327795647,2.93996,3401.4,3401.2,0.58600165]
[1721327796214,2.93996,3401.4,3401.2,0.03600165]
[1721327796215,5.8801,3401.3,3401.2,0.03600165]
[1721327796650,5.8801,3401.3,3400.6,2.2731]
[1721327796651,2.94023,3401.1,3400.6,2.2731]
[1721327796846,2.93974,3401.7,3401.2,0.03600165]
[1721327796847,2.93992,3401.5,3401.2,0.03600165]
[1721327797048,2.93992,3401.5,3400.9,2.94038]
[1721327797264,2.93992,3401.5,3401.3,0.03591301]
[1721327797421,2.9401,3401.3,3400.7,0.55]
[1721327797625,2.94014,3401.2,3400.7,0.55]
[1721327797894,3.233902,3401.5,3400.8,2.94048]
[1721327797895,2.94003,3401.4,3400.8,2.94048]
[1721327798041,2.9401,3401.3,3400.9,0.55]
[1721327798455,2.94014,3401.2,3400.8,0.55]
[1721327798624,3.528157,3401.2,3400.7,0.55]
[1721327798824,2.94014,3401.2,3400.7,0.55]
[1721327799452,2.94036,3401.0,3400.7,0.55]
[1721327799633,2.94018,3401.2,3400.7,0.55]
[1721327799839,2.94037,3401.0,3400.7,0.55]
[1721327800153,2.93982,3401.6,3400.7,0.55]
[1721327800352,2.94038,3401.0,3400.7,0.55]
[1721327800555,2.94018,3401.2,3400.7,0.55]
[1721327800735,2.94022,3401.1,3400.7,0.55]
[1721327800918,2.94,3401.4,3400.7,0.55]
[1721327801123,2.94014,3401.2,3400.7,0.55]
[1721327801353,2.93984,3401.6,3400.9,2.94039]
[1721327801521,2.93984,3401.6,3401.0,0.55]
[1721327802164,2.93984,3401.6,3401.1,0.0358992]
[1721327802541,2.93984,3401.6,3401.0,0.55]
[1721327802753,2.93984,3401.6,3401.1,0.0358992]
[1721327802949,2.93984,3401.6,3401.0,0.55]
[1721327803148,2.93984,3401.6,3401.1,0.03583128]
[1721327803344,2.93984,3401.6,3401.0,0.55]
[1721327803574,2.93984,3401.6,3401.1,0.03583128]
[1721327803945,2.93988,3401.5,3401.0,0.55]
[1721327804151,2.93988,3401.5,3401.1,0.03578307]
[1721327804354,5.87952,3401.7,3401.1,0.03578307]
[1721327804669,2.93984,3401.6,3401.0,0.55]
[1721327804837,3.0,3402.0,3401.3,2.2583]
[1721327805040,5.93958,3401.9,3401.4,0.55]
[1721327805247,2.93958,3401.9,3401.4,0.58874597]
[1721327805495,5.87918,3401.9,3401.4,0.58874597]
[1721327805649,3.827498,3401.9,3401.4,0.58874597]
[1721327806376,2.93963,3401.8,3401.4,0.58874597]
[1721327806571,3.0,3402.0,3401.4,0.58874597]
[1721327806955,3.0,3402.0,3401.4,3.52870597]
[1721327807265,2.93923,3402.3,3401.4,3.52870597]
[1721327807446,2.93923,3402.3,3401.6,2.93971]
[1721327807807,2.93923,3402.3,3401.7,0.59208066]
[1721327807808,5.87849,3402.3,3401.7,0.59208066]
[1721327807945,2.93923,3402.3,3401.7,0.59208066]
[1721327808845,2.93938,3402.1,3401.7,0.04208066]
[1721327809047,2.93945,3402.0,3401.7,0.04208066]
[1721327809247,2.93966,3401.8,3401.5,0.55]
[1721327809546,2.93971,3401.7,3401.4,0.55]
[1721327809744,2.93971,3401.7,3400.9,2.94037]
[1721327809745,2.93988,3401.5,3400.9,2.3079]
[1721327809963,5.87934,3401.8,3400.9,5.24829]
[1721327810181,2.93965,3401.8,3401.1,2.94017]
[1721327810487,2.93971,3401.7,3401.1,2.94017]
[1721327810689,2.93965,3401.8,3401.1,2.94017]
[1721327810900,5.87935,3401.8,3401.1,2.94017]
[1721327811204,2.93971,3401.7,3401.1,2.94017]
[1721327811366,2.9398,3401.6,3400.9,5.24825]
[1721327811569,2.9398,3401.6,3401.0,2.94025]
[1721327812074,2.9398,3401.6,3401.1,0.55]
[1721327812600,0.3527511,3401.8,3401.1,0.55]
[1721327812793,2.9397,3401.7,3401.1,3.49021]
[1721327814099,2.93942,3402.1,3401.3,2.94003]
[1721327814387,2.93942,3402.1,3401.5,2.93987]
[1721327814586,2.93942,3402.1,3401.6,0.55]
[1721327814991,2.93942,3402.1,3401.6,5.95258]
[1721327815293,2.93921,3402.3,3401.6,5.95258]
[1721327815600,3.233201,3402.2,3401.6,5.95258]
[1721327816175,0.293921,3402.2,3401.6,3.0128]
[1721327816503,3.233251,3402.2,3401.6,3.0128]
[1721327816856,0.293921,3402.2,3401.6,5.95253]
[1721327817356,3.233191,3402.2,3401.7,0.04164313]
[1721327818386,2.93904,3402.5,3401.7,2.98128313]
[1721327818598,3.0,3402.4,3401.8,0.55]
[1721327819092,2.93927,3402.2,3401.9,0.04133637]
[1721327819301,2.93938,3402.1,3401.9,0.04133637]
[1721327819508,3.827243,3402.1,3401.7,0.55]
[1721327819666,2.93925,3402.3,3402.0,0.0412202]
[1721327820001,2.93925,3402.3,3401.7,0.55]
[1721327820163,2.93928,3402.2,3402.1,0.04105303]
[1721327820365,2.93928,3402.2,3401.7,0.55]
[1721327820586,2.93928,3402.2,3401.8,0.04133972]
[1721327820789,3.0,3402.4,3401.8,0.04133972]
[1721327820996,2.93919,3402.3,3401.8,0.04133972]
[1721327821378,3.593904,3402.4,3401.8,0.04133972]
[1721327821577,2.93923,3402.3,3401.8,0.04133972]
[1721327822122,3.593904,3402.4,3401.8,2.98094972]
[1721327822331,3.0,3402.4,3401.9,0.55]
[1721327822536,2.93877,3402.8,3402.1,2.4343]
[1721327822822,2.411,3403.2,3402.2,0.59077508]
[1721327822823,2.93902,3402.5,3402.2,0.59077508]
[1721327822967,0.5878,3402.4,3402.2,0.59077508]
[1721327823168,2.93902,3402.5,3402.2,0.59077508]
[1721327823501,2.93891,3402.7,3402.2,0.59077508]
[1721327824792,2.93902,3402.5,3402.2,0.59077508]
[1721327826796,2.93891,3402.7,3402.2,0.59077508]
[1721327827185,2.93871,3402.9,3402.2,3.53003508]
[1721327827731,2.93871,3402.9,3402.3,2.93917]
[1721327828028,2.93871,3402.9,3402.4,0.59056246]
[1721327828383,3.526435,3402.9,3402.4,0.59056246]
[1721327828589,3.526435,3402.9,3402.4,0.04056246]
[1721327828590,5.87745,3402.9,3402.4,0.04056246]
[1721327828834,2.93871,3402.9,3402.4,0.59056246]
[1721327829996,2.93875,3402.8,3402.4,0.59056246]
[1721327830238,2.93885,3402.7,3402.4,0.04056246]
[1721327830436,0.293885,3402.6,3402.4,0.04056246]
[1721327830732,0.293885,3402.6,3402.2,0.55]
[1721327831199,3.232815,3402.6,3402.3,0.04066877]
[1721327831731,3.232815,3402.6,3402.2,0.55]
[1721327832044,2.9391,3402.4,3402.3,0.04066877]
[1721327832518,2.93928,3402.2,3401.7,5.19939]
[1721327832825,2.93889,3402.7,3401.7,2.2597]
[1721327833134,2.93944,3402.0,3401.4,2.4778]
[1721327833349,3.0,3402.6,3401.4,2.4778]
[1721327833350,2.93971,3401.7,3401.4,2.4778]
[1721327834808,2.93971,3401.7,3401.1,2.94021]
[1721327835532,2.93971,3401.7,3401.1,2.94015]
[1721327835830,5.87949,3401.7,3401.1,2.94015]
[1721327835990,2.94,3401.4,3401.2,0.55]
[1721327836326,2.94,3401.4,3401.0,2.2952]
[1721327836327,2.93989,3401.5,3401.1,0.55]
[1721327836895,2.93975,3401.7,3401.1,0.55]
[1721327837413,2.93978,3401.7,3401.1,0.55]
[1721327837605,2.93947,3402.0,3401.3,2.94004]
[1721327837816,2.93947,3402.0,3401.4,0.55]
[1721327837817,2.93955,3401.9,3401.4,0.55]
[1721327839301,2.93963,3401.8,3401.4,0.55]
[1721327839500,2.93963,3401.8,3401.2,3.4901]
[1721327840206,2.93963,3401.8,3401.2,0.55]
[1721327840411,2.93963,3401.8,3401.1,0.55]
[1721327840412,2.93982,3401.6,3401.1,0.55]
[1721327840608,2.93963,3401.8,3401.1,3.4902]
[1721327840816,2.93963,3401.8,3401.1,4.392214]
[1721327841018,5.87933,3401.8,3401.1,4.392214]
[1721327841397,2.93963,3401.8,3401.1,4.392214]
[1721327841605,2.93963,3401.8,3401.2,2.94011]
[1721327841799,2.93955,3401.9,3401.3,3.49004]
[1721327842115,2.93955,3401.9,3401.4,0.55]
[1721327842303,2.93955,3401.9,3401.1,3.49022]
[1721327843313,2.93971,3401.7,3401.1,3.49022]
[1721327843522,2.93955,3401.9,3401.2,2.94008]
[1721327843730,2.93955,3401.9,3401.3,0.55]
[1721327844136,2.93971,3401.7,3401.3,0.55]
[1721327844449,2.93971,3401.7,3401.1,0.55]
[1721327844602,2.93971,3401.7,3401.1,3.49017]
[1721327844806,2.93971,3401.7,3401.2,2.94012]
[1721327845001,2.93971,3401.7,3401.3,0.55]
[1721327845519,2.93963,3401.8,3401.3,0.55]
[1721327845720,2.93945,3402.0,3401.3,0.55]
[1721327846045,2.93954,3401.9,3401.3,3.49004]
[1721327846406,2.93965,3401.8,3401.3,0.55]
[1721327846647,5.87935,3401.8,3401.3,0.55]
[1721327846805,2.93973,3401.7,3401.3,0.55]
[1721327847135,2.93973,3401.7,3401.2,0.55]
[1721327847342,2.93973,3401.7,3401.4,0.03787027]
[1721327847647,2.93973,3401.7,3401.2,0.55]
[1721327847648,2.93973,3401.7,3401.5,0.03777358]
[1721327847802,5.87952,3401.7,3401.5,0.03777358]
[1721327848002,5.87952,3401.7,3401.1,3.49016]
[1721327848003,2.9398,3401.6,3401.1,3.49016]
[1721327848942,2.9398,3401.6,3401.1,0.55]
[1721327849100,2.94,3401.4,3401.1,0.55]
[1721327849309,2.3701,3401.9,3401.1,0.55]
[1721327849503,2.93974,3401.7,3401.1,0.55]
[1721327849820,2.93993,3401.5,3401.1,0.55]
[1721327850146,2.94005,3401.3,3401.1,0.55]
[1721327850453,2.93991,3401.5,3401.1,0.55]
[1721327850808,2.94001,3401.4,3401.1,0.55]
[1721327852148,2.94006,3401.3,3401.1,0.55]
[1721327853088,2.94013,3401.2,3401.1,0.55]
[1721327853539,2.94003,3401.4,3400.8,0.55]
[1721327854266,2.94024,3401.1,3400.8,0.55]
[1721327855340,2.94032,3401.0,3400.8,0.55]
[1721327855726,2.94032,3401.0,3400.5,2.8702]
[1721327856230,2.94057,3400.7,3400.5,2.8702]
[1721327856427,2.94057,3400.7,3400.2,2.2995]
[1721327856631,2.94048,3400.8,3400.2,2.2995]
[1721327856832,2.94048,3400.8,3400.2,5.24043]
[1721327857738,2.94048,3400.8,3400.3,0.55]
[1721327858387,1.53312436,3401.4,3400.6,2.94065]
[1721327858588,2.94023,3401.1,3400.7,0.55]
[1721327859067,2.94023,3401.1,3400.5,0.55]
[1721327859395,2.94009,3401.3,3400.5,0.55]
[1721327859580,2.94021,3401.2,3400.6,2.94065]
[1721327859779,2.94028,3401.1,3400.7,0.55]
[1721327859977,2.94035,3401.0,3400.5,0.55]
[1721327861075,4.07541,3401.2,3400.5,3.49073]
[1721327861409,2.9402,3401.2,3400.5,3.49073]
[1721327861768,2.94023,3401.1,3400.5,3.49073]
[1721327862106,2.94023,3401.1,3400.6,0.0382513]
[1721327863493,2.9401,3401.3,3400.6,2.9788613]
[1721327863698,5.93996,3401.4,3400.8,2.94042]
[1721327863906,5.93996,3401.4,3400.7,5.20887]
[1721327863907,3.887988,3401.4,3400.7,5.20887]
[1721327864064,3.887988,3401.4,3400.9,0.04167883]
[1721327864065,3.0,3401.4,3400.9,0.04167883]
[1721327864266,3.0,3401.4,3400.8,0.59178523]
[1721327864507,5.94001,3401.4,3401.0,0.04157146]
[1721327864714,3.0,3401.4,3400.9,0.04167785]
[1721327864911,3.0,3401.4,3401.1,0.04146507]
[1721327865075,3.0,3401.4,3401.0,0.04152051]
[1721327865383,2.94006,3401.3,3400.8,0.55]
[1721327865561,3.593992,3401.4,3401.1,0.04141412]
[1721327865562,5.88026,3401.2,3401.1,0.04141412]
[1721327865777,2.9403,3401.1,3400.8,0.55]
[1721327865988,3.593992,3401.4,3400.2,5.33285]
[1721327865989,2.94032,3401.0,3400.2,5.33285]
[1721327866183,2.94032,3401.0,3400.3,0.55]
[1721327866184,3.234352,3401.0,3400.3,0.55]
[1721327866407,2.94049,3400.8,3400.3,0.60947339]
[1721327867197,2.94032,3401.0,3400.3,3.55032339]
[1721327867374,2.9404,3400.9,3400.3,3.55032339]
[1721327867699,2.9404,3400.9,3400.4,2.94082]
[1721327867900,2.9404,3400.9,3400.5,0.55]
[1721327868199,2.9404,3400.9,3400.5,0.59195155]
[1721327868367,2.9404,3400.9,3400.5,0.60922135]
[1721327869466,2.9405,3400.8,3400.5,0.60922135]
[1721327870401,2.94031,3401.0,3400.5,0.60922135]
[1721327870774,5.8807,3401.0,3400.5,0.60922135]
[1721327871005,2.94041,3400.9,3400.5,0.60922135]
[1721327871369,2.94017,3401.2,3400.5,4.43825649]
[1721327871590,2.93985,3401.6,3400.9,2.94038]
[1721327871836,2.93998,3401.4,3401.0,0.55]
[1721327871977,2.93998,3401.4,3401.0,0.59136672]
[1721327872313,2.93998,3401.4,3401.1,0.55]
[1721327872487,2.93998,3401.4,3401.1,0.05847131]
[1721327873093,5.88002,3401.4,3401.1,0.05847131]
[1721327873429,2.93998,3401.4,3401.1,0.05847131]
[1721327873639,2.9401,3401.3,3401.1,0.05847131]
[1721327876717,2.94013,3401.2,3401.1,0.05847131]
[1721327878006,2.94001,3401.4,3401.1,0.05847131]
[1721327878942,2.9399,3401.5,3401.1,0.05847131]
[1721327879119,4.47389955,3401.5,3401.2,0.55]
[1721327879441,2.9399,3401.5,3401.2,0.59078115]
[1721327879656,2.9399,3401.5,3401.2,0.5672698]
[1721327879811,2.9399,3401.5,3401.2,0.0172698]
[1721327880011,2.9399,3401.5,3401.3,0.04061596]
[1721327880549,2.9399,3401.5,3401.3,0.05788576]
[1721327880907,2.93973,3401.7,3401.3,0.05788576]
[1721327881115,2.93967,3401.8,3401.4,0.55]
[1721327881352,1.53455462,3401.9,3401.4,3.48991]
[1721327881525,4.47421609,3402.0,3401.5,0.04034336]
[1721327881845,2.93953,3401.9,3401.5,0.04034336]
[1721327882051,2.93962,3401.8,3401.5,0.04034336]
[1721327882244,1.53471624,3402.0,3401.5,0.04034336]
[1721327882410,4.47412624,3402.1,3401.5,2.98016336]
[1721327882609,4.47412624,3402.1,3401.6,0.55]
[1721327882610,2.93946,3402.0,3401.6,0.55]
[1721327882863,2.93946,3402.0,3401.7,0.04005311]
[1721327883009,4.47405624,3402.2,3401.7,0.04005311]
[1721327883261,2.93954,3401.9,3401.7,0.04005311]
[1721327883671,2.93954,3401.9,3401.7,0.05732291]
[1721327884471,2.93962,3401.8,3401.7,0.05732291]
[1721327885275,5.87924,3401.8,3401.7,0.05732291]
[1721327886006,5.87924,3401.8,3401.7,0.0172698]
[1721327886007,2.93962,3401.8,3401.7,0.0172698]
[1721327886374,5.87924,3401.8,3401.7,0.0172698]
[1721327888126,7.41423508,3401.8,3401.7,0.0172698]
[1721327888304,5.87924,3401.8,3401.7,0.0172698]
[1721327888507,7.41423508,3401.8,3401.7,0.0172698]
[1721327889103,5.87924,3401.8,3401.7,0.0172698]
[1721327889298,7.0269347,3401.8,3401.7,0.0172698]
[1721327889504,4.0873147,3401.8,3401.7,0.0172698]
[1721327889702,2.93962,3401.8,3401.7,0.0172698]
[1721327889906,2.93962,3401.8,3401.7,0.0614421]
[1721327890215,2.9396,3401.9,3401.7,0.0614421]
[1721327890514,2.93929,3402.2,3401.7,0.0614421]
[1721327890717,2.93929,3402.2,3401.8,0.55]
[1721327890885,2.93929,3402.2,3401.8,0.59405414]
[1721327891802,2.93929,3402.2,3401.8,0.61132394]
[1721327892004,1.53525264,3402.5,3401.9,2.4927]
[1721327892308,2.93918,3402.3,3402.0,0.04378615]
[1721327892616,2.93918,3402.3,3402.0,0.06105595]
[1721327892617,2.93927,3402.2,3402.0,0.06105595]
[1721327893124,2.9392,3402.3,3402.0,0.06105595]
[1721327893605,2.93929,3402.2,3402.0,0.06105595]
[1721327893979,5.87847,3402.3,3402.0,0.06105595]
[1721327894386,2.9393,3402.2,3402.0,0.06105595]
[1721327896926,5.87865,3402.2,3402.0,0.06105595]
[1721327897091,2.93936,3402.1,3402.0,0.06105595]
[1721327897296,2.93925,3402.3,3402.0,0.06105595]
[1721327897508,2.93928,3402.2,3402.0,0.06105595]
[1721327899214,2.93914,3402.4,3402.0,0.06105595]
[1721327901221,2.93928,3402.2,3402.0,0.06105595]
[1721327902318,2.93936,3402.1,3402.0,0.06105595]
[1721327902843,5.87872,3402.1,3402.0,0.06105595]
[1721327903354,5.87872,3402.1,3402.0,0.0172698]
[1721327904534,2.9393,3402.2,3402.0,0.0172698]
[1721327904857,2.93936,3402.1,3402.0,0.0172698]
[1721327905479,2.93919,3402.3,3402.0,0.0172698]
[1721327907118,2.93919,3402.3,3402.1,0.04319502]
[1721327907854,2.93919,3402.3,3402.1,0.06046482]
[1721327909361,2.93927,3402.2,3402.1,0.06046482]
[1721327909565,5.87854,3402.2,3402.1,0.06046482]
[1721327909740,8.81781,3402.2,3402.1,0.06046482]
[1721327909937,8.81781,3402.2,3402.1,0.0172698]
[1721327909938,14.27171,3402.2,3402.1,0.0172698]
[1721327910148,14.27171,3402.2,3401.0,7.44]
[1721327910149,2.94018,3401.2,3401.0,7.44]
[1721327910348,2.94,3401.4,3400.7,2.94055]
[1721327910552,2.93994,3401.5,3400.8,2.94047]
[1721327910736,5.88005,3401.4,3400.8,2.94047]
[1721327911064,2.94006,3401.3,3400.6,5.33808]
[1721327912239,2.94006,3401.3,3400.7,2.94051]
[1721327912771,2.94006,3401.3,3400.8,0.55]
[1721327913067,1.53072254,3401.8,3400.7,1.407309]
[1721327913262,2.94011,3401.3,3400.7,3.49054]
[1721327914124,2.94015,3401.2,3400.7,3.49054]
[1721327914343,2.94029,3401.1,3400.7,0.55]
[1721327915456,2.94036,3401.0,3400.7,0.55]
[1721327916360,2.94027,3401.1,3400.7,0.55]
[1721327917464,2.4036,3401.8,3400.8,2.94047]
[1721327917465,2.94,3401.4,3400.8,2.94047]
[1721327917629,4.24050644,3402.1,3401.1,2.94021]
[1721327917630,5.87949,3401.7,3401.1,2.94021]
[1721327917825,5.87949,3401.7,3401.2,0.55]
[1721327917826,3.0,3401.6,3401.2,0.55]
[1721327918064,5.43981,3401.6,3400.9,5.76343]
[1721327918265,2.93997,3401.4,3401.0,1.073286]
[1721327918470,2.93997,3401.4,3401.1,0.55]
[1721327918768,2.93997,3401.4,3400.9,2.8231]
[1721327918966,2.9402,3401.2,3400.9,0.55]
[1721327919155,2.9402,3401.2,3400.7,0.55]
[1721327920064,2.94023,3401.1,3400.7,0.55]
[1721327920271,2.94031,3401.0,3400.7,0.55]
[1721327920566,2.94031,3401.0,3400.5,0.55]
[1721327921259,5.8804,3401.2,3400.5,0.55]
[1721327921436,5.8804,3401.2,3400.5,3.49071]
[1721327922167,5.8804,3401.2,3400.6,0.04455232]
[1721327922339,3.85887902,3401.5,3400.6,0.04455232]
[1721327922532,2.94035,3401.0,3400.6,0.04455232]
[1721327923148,2.94019,3401.2,3400.6,0.04455232]
[1721327923549,2.94023,3401.1,3400.6,0.04455232]
[1721327925281,2.94007,3401.3,3400.6,0.04455232]
[1721327925452,2.94057,3400.7,3400.6,0.04455232]
[1721327925672,2.9404,3400.9,3400.6,0.04455232]
[1721327925673,5.88087,3400.9,3400.6,0.04455232]
[1721327925837,2.94026,3401.1,3400.6,0.04437272]
[1721327926043,2.94035,3401.0,3400.4,0.55]
[1721327926240,2.94042,3400.9,3400.4,2.164379]
[1721327926472,2.94042,3400.9,3400.5,0.04449096]
[1721327926780,2.94049,3400.8,3400.5,0.04449096]
[1721327930538,2.94057,3400.7,3400.5,0.04449096]
[1721327930974,2.94057,3400.7,3400.2,0.55]
[1721327931181,2.94057,3400.7,3400.6,0.04421702]
[1721327931385,2.94057,3400.7,3400.2,3.491]
[1721327931696,5.25096,3401.0,3400.2,5.095501]
[1721327931840,5.25096,3401.0,3400.3,0.04457176]
[1721327932045,2.94049,3400.8,3400.3,0.04457176]
[1721327932278,2.94049,3400.8,3400.2,5.095501]
[1721327932474,2.94049,3400.8,3400.4,0.04445351]
[1721327932682,2.94049,3400.8,3400.2,5.095501]
[1721327933179,2.94049,3400.8,3400.3,0.04457176]
[1721327933398,2.94049,3400.8,3400.2,5.095501]
[1721327933603,2.94036,3401.0,3400.5,2.3053]
[1721327934019,4.9317,3401.6,3400.6,0.59421702]
[1721327934020,6.46305332,3401.6,3400.6,0.59421702]
[1721327934195,2.94014,3401.2,3400.9,0.848]
[1721327934577,2.94014,3401.2,3401.0,0.04375614]
[1721327934775,5.43984,3401.6,3401.1,3.2275]
[1721327935000,5.43984,3401.6,3401.2,0.55]
[1721327935001,2.93988,3401.5,3401.2,0.55]
[1721327935374,2.93988,3401.5,3401.3,0.04338296]
[1721327935805,2.5,3401.6,3401.3,0.04338296]
[1721327936483,3.0,3401.7,3401.3,0.04338296]
[1721327937007,2.93966,3401.8,3401.3,0.04338296]
[1721327937981,2.93979,3401.6,3401.3,0.04338296]
[1721327938182,2.93975,3401.7,3401.3,0.04338296]
[1721327942203,2.93966,3401.8,3401.3,0.04338296]
[1721327942587,2.93966,3401.8,3401.3,2.98342296]
[1721327942790,3.0,3402.2,3401.6,2.2605]
[1721327943025,1.53083419,3402.3,3401.6,2.2605]
[1721327943026,5.93937,3402.1,3401.6,2.2605]
[1721327943320,2.93954,3401.9,3401.7,0.55]
[1721327943521,2.93937,3402.1,3401.7,0.55]
[1721327943821,3.0,3402.0,3401.7,0.55]
[1721327945619,2.93937,3402.1,3401.7,0.55]
[1721327945817,5.8788,3402.1,3401.7,0.55]
[1721327946026,2.93937,3402.1,3401.7,0.55]
[1721327946390,2.93946,3402.0,3401.7,0.55]
[1721327946597,2.93962,3401.8,3401.2,2.2914]
[1721327946826,2.93998,3401.4,3400.8,2.2914]
[1721327947039,5.88001,3401.4,3401.3,0.04815458]
[1721327947232,2.94015,3401.2,3400.6,2.94062]
[1721327947391,2.94031,3401.0,3400.4,8.17295]
[1721327947595,2.94031,3401.0,3400.7,0.04351333]
[1721327947596,2.94054,3400.8,3400.7,0.04351333]
[1721327947825,2.94054,3400.8,3400.4,2.2914]
[1721327948030,2.94031,3401.0,3400.4,2.2914]
[1721327948423,2.94031,3401.0,3400.4,5.23217]
[1721327948837,5.88069,3401.0,3400.4,5.23217]
[1721327949016,2.94043,3400.9,3400.4,6.35979639]
[1721327949948,2.94029,3401.1,3400.5,0.55]
[1721327950519,2.94031,3401.0,3400.5,0.55]
[1721327951549,2.94002,3401.4,3400.5,0.55]
[1721327951736,2.94002,3401.4,3400.7,2.94056]
[1721327951942,2.94013,3401.3,3400.8,0.55]
[1721327952249,2.94002,3401.4,3400.8,0.55]
[1721327952450,1.53112998,3401.5,3400.8,0.55]
[1721327952754,1.53112998,3401.5,3400.5,2.94068]
[1721327952755,2.94018,3401.2,3400.6,0.55]
[1721327953553,2.94018,3401.2,3400.6,3.49065]
[1721327955335,2.9401,3401.3,3400.7,2.94052]
[1721327955627,2.9401,3401.3,3400.8,0.55]
[1721327956249,2.94024,3401.1,3400.8,0.55]
[1721327956452,2.94024,3401.1,3400.6,0.55]
[1721327956620,2.94024,3401.1,3400.6,3.49064]
[1721327957148,2.9401,3401.3,3400.6,3.49057]
[1721327957454,2.9401,3401.3,3400.7,2.94057]
[1721327957623,2.9401,3401.3,3400.8,3.49047]
[1721327958013,2.93991,3401.5,3400.9,2.94034]
[1721327958014,5.87987,3401.5,3400.9,2.94034]
[1721327958220,5.93996,3401.4,3401.0,0.55]
[1721327958435,5.93996,3401.4,3400.8,0.55]
[1721327959834,2.94011,3401.3,3400.8,0.55]